Departmental Area,Entity,Payment Date,Expense type,Expense Area,Supplier Name,Payment Reference,     Invoice Distribution Amount     ,Description,Supplier Type,Expenditure Type
UK Statistics Family,Office for National Statistics,01/11/2022,Telecoms,IT Operations,Crown Hosting Data Centres Limited,245208,860,Information Management Services,SME,Programme Expenditure
UK Statistics Family,Office for National Statistics,01/11/2022,Hosting,IT Operations,Crown Hosting Data Centres Limited,245208,"38,839.24",Information Management Services,SME,Programme Expenditure
UK Statistics Family,Office for National Statistics,01/11/2022,FM Contract Payments,Vinci Payments,Vinci Construction UK Limited,245212,"338,768.57",Facilities Mangement Services,Large,Programme Expenditure
UK Statistics Family,Office for National Statistics,01/11/2022,Exp - Purchase Of Goods/Services - IT Contractual Services,Digital Publishing,University of Durham,245217,"72,956.80",Statistical Services,Large,Programme Expenditure
UK Statistics Family,Office for National Statistics,01/11/2022,IT (Owned) At Cost - Additions,IT Operations,Xma Limited,245220,"1,124,205.00",Computers and Peripherals,Large,Programme Expenditure
UK Statistics Family,Office for National Statistics,01/11/2022,"ICT Outsourcing, Maintenance And Support",IT Operations,Xma Limited,245220,"1,248.00",Computers and Peripherals,Large,Programme Expenditure
UK Statistics Family,Office for National Statistics,01/11/2022,Exp - Purchase Of Goods/Services - IT Contractual Services,Digital Delivery,Xma Limited,245220,"-5,567.86",Computers and Peripherals,Large,Programme Expenditure
UK Statistics Family,Office for National Statistics,01/11/2022,Stationery,Interviewer Support,Xma Limited,245220,628.32,Computers and Peripherals,Large,Programme Expenditure
UK Statistics Family,Office for National Statistics,01/11/2022,Travel And Subsistence,Corporate Centre,Corporate Travel Management ,245222,"34,356.40",Travel and Accommodation,SME,Programme Expenditure
UK Statistics Family,Office for National Statistics,01/11/2022,Hosting,IT Operations,Equiniti Limited,245223,"48,400.00",Information Management Services,Large,Programme Expenditure
UK Statistics Family,Office for National Statistics,01/11/2022,Exp - Purchase Of Goods/Services - Contractors,Data Architecture,Certes Computing Ltd,245229,"8,400.00",Information Management Services,SME,Programme Expenditure
UK Statistics Family,Office for National Statistics,01/11/2022,Exp - Purchase Of Goods/Services - Contractors,Data Architecture,Certes Computing Ltd,245229,"9,180.36",Information Management Services,SME,Programme Expenditure
UK Statistics Family,Office for National Statistics,01/11/2022,Exp - Purchase Of Goods/Services - Contractors,CLOUD ARCHITECTURE,Certes Computing Ltd,245229,"9,780.36",Information Management Services,SME,Programme Expenditure
UK Statistics Family,Office for National Statistics,01/11/2022,Exp - Purchase Of Goods/Services - Contractors,Strategy And Architecture,Certes Computing Ltd,245229,"9,000.00",Information Management Services,SME,Programme Expenditure
UK Statistics Family,Office for National Statistics,01/11/2022,Exp - Purchase Of Goods/Services - Contractors,Testing,La International,245230,"20,277.46",Information Management Services,SME,Programme Expenditure
UK Statistics Family,Office for National Statistics,01/11/2022,Exp - Purchase Of Goods/Services - Contractors,Consultancy Management,La International,245230,"3,681.18",Information Management Services,SME,Programme Expenditure
UK Statistics Family,Office for National Statistics,01/11/2022,Exp - Purchase Of Goods/Services - Contractors,Consultancy Management,La International,245230,"10,047.24",Information Management Services,SME,Programme Expenditure
UK Statistics Family,Office for National Statistics,01/11/2022,Exp - Purchase Of Goods/Services - Contractors,Data Architecture,La International,245230,"13,352.98",Information Management Services,SME,Programme Expenditure
UK Statistics Family,Office for National Statistics,01/11/2022,Exp - Purchase Of Goods/Services - Contractors,Data Architecture,La International,245230,"12,843.54",Information Management Services,SME,Programme Expenditure
UK Statistics Family,Office for National Statistics,01/11/2022,Exp - Purchase Of Goods/Services - Contractors,Tech Delivery Next Gen IT And Infrastructure,La International,245230,"7,689.24",Information Management Services,SME,Programme Expenditure
UK Statistics Family,Office for National Statistics,01/11/2022,Exp - Purchase Of Goods/Services - Contractors,IT Applications,La International,245230,"7,464.66",Information Management Services,SME,Programme Expenditure
UK Statistics Family,Office for National Statistics,01/11/2022,Exp - Purchase Of Goods And Services Consultants,Policy and Design,RSM Risk Assurance Services LLP,245240,"53,490.60",Consultancy,SME,Programme Expenditure
UK Statistics Family,Office for National Statistics,01/11/2022,Exp - Purchase Of Goods/Services - IT Contractual Services,CDIO UNGP,CTS (Cloud Technology Solutions Ltd),245242,"48,039.00",Information Management Services,Large,Programme Expenditure
UK Statistics Family,Office for National Statistics,01/11/2022,Exp - Purchase Of Goods And Services Consultants,2023 CENSUS DATA TRANSFORMATION,The Sensible Code Company,245253,"69,476.00",Statistical Services,SME,Programme Expenditure
UK Statistics Family,Office for National Statistics,01/11/2022,Exp - Purchase Of Goods/Services - Incentive Payments,Survey Management,Sodexo Motivation Solutions U.K. ltd,245254,"1,643.08",Survey Response Incentive Vouchers,Large,Programme Expenditure
UK Statistics Family,Office for National Statistics,01/11/2022,Exp - Purchase Of Goods/Services - Incentive Payments,Survey Management,Sodexo Motivation Solutions U.K. ltd,245254,"1,452.87",Survey Response Incentive Vouchers,Large,Programme Expenditure
UK Statistics Family,Office for National Statistics,01/11/2022,Exp - Purchase Of Goods/Services - Incentive Payments,Survey Management,Sodexo Motivation Solutions U.K. ltd,245254,"3,625.60",Survey Response Incentive Vouchers,Large,Programme Expenditure
UK Statistics Family,Office for National Statistics,01/11/2022,Exp - Purchase Of Goods/Services - Incentive Payments,Survey Management,Sodexo Motivation Solutions U.K. ltd,245254,"28,245.78",Survey Response Incentive Vouchers,Large,Programme Expenditure
UK Statistics Family,Office for National Statistics,01/11/2022,Exp - Purchase Of Goods/Services - Incentive Payments,Covid Infection Survey,Sodexo Motivation Solutions U.K. ltd,245254,"76,052.10",Survey Response Incentive Vouchers,Large,Programme Expenditure
UK Statistics Family,Office for National Statistics,01/11/2022,Exp - Purchase Of Goods/Services - Incentive Payments,Best Practice And Impact,Sodexo Motivation Solutions U.K. ltd,245254,64.14,Survey Response Incentive Vouchers,Large,Programme Expenditure
UK Statistics Family,Office for National Statistics,01/11/2022,Exp - Purchase Of Goods/Services - Incentive Payments,Crime Statistics,Sodexo Motivation Solutions U.K. ltd,245254,394.74,Survey Response Incentive Vouchers,Large,Programme Expenditure
UK Statistics Family,Office for National Statistics,01/11/2022,Exp - Purchase Of Goods/Services - Incentive Payments,Interviewer Support,Sodexo Motivation Solutions U.K. ltd,245254,577.31,Survey Response Incentive Vouchers,Large,Programme Expenditure
UK Statistics Family,Office for National Statistics,01/11/2022,Exp - Purchase Of Goods/Services - Incentive Payments,Survey Management,Sodexo Motivation Solutions U.K. ltd,245254,"3,069.22",Survey Response Incentive Vouchers,Large,Programme Expenditure
UK Statistics Family,Office for National Statistics,01/11/2022,Rent Payable,Property Titchfield,Eaton Limited,245260,"29,623.20",Rental Charges,SME,Programme Expenditure
UK Statistics Family,Office for National Statistics,01/11/2022,Telecoms,IT Operations,Freedom Communications (UK) Ltd,245261,"45,410.06",Information Management Services,Large,Programme Expenditure
UK Statistics Family,Office for National Statistics,01/11/2022,Exp - Short-Term Contract & Agency Staff - Full Cost,Finance,Parity Resources Limited,245263,"2,637.36",Information Management Services,Large,Programme Expenditure
UK Statistics Family,Office for National Statistics,01/11/2022,Exp - Short-Term Contract & Agency Staff - Full Cost,Planning And Info Governance,Parity Resources Limited,245263,"1,465.20",Information Management Services,Large,Programme Expenditure
UK Statistics Family,Office for National Statistics,01/11/2022,Exp - Short-Term Contract & Agency Staff - Full Cost,Recruitment ,Parity Resources Limited,245263,732.6,Information Management Services,Large,Programme Expenditure
UK Statistics Family,Office for National Statistics,01/11/2022,Exp - Purchase Of Goods/Services - Contractors,Data Architecture,Parity Resources Limited,245263,"13,469.40",Information Management Services,Large,Programme Expenditure
UK Statistics Family,Office for National Statistics,01/11/2022,Exp - Purchase Of Goods/Services - Contractors,Strategy And Architecture,Parity Resources Limited,245263,"8,421.00",Information Management Services,Large,Programme Expenditure
UK Statistics Family,Office for National Statistics,01/11/2022,Exp - Purchase Of Goods/Services - Contractors,Tech Delivery Next Gen IT And Infrastructure,Parity Resources Limited,245263,"8,421.00",Information Management Services,Large,Programme Expenditure
UK Statistics Family,Office for National Statistics,01/11/2022,Other Goods And Services,GSS Strategy Delivery,Cabinet Office,245264,"35,000.00",Joint Project Funding,Large,Programme Expenditure
UK Statistics Family,Office for National Statistics,01/11/2022,Exp - Short-Term Contract & Agency Staff - Full Cost,Business Change Support,Talent International,245267,"4,971.20",Information Management Services,SME,Programme Expenditure
UK Statistics Family,Office for National Statistics,01/11/2022,Exp - Short-Term Contract & Agency Staff - Full Cost,Business Architecture Transformation And Statistical Strategy,Talent International,245267,"4,075.92",Information Management Services,SME,Programme Expenditure
UK Statistics Family,Office for National Statistics,01/11/2022,Exp - Purchase Of Goods/Services - Contractors,IT Operations,Talent International,245267,"36,480.00",Information Management Services,SME,Programme Expenditure
UK Statistics Family,Office for National Statistics,01/11/2022,Exp - Purchase Of Goods/Services - Contractors,IT Operations,Talent International,245267,"18,480.00",Information Management Services,SME,Programme Expenditure
UK Statistics Family,Office for National Statistics,01/11/2022,Exp - Short-Term Contract & Agency Staff - Full Cost,Data Science Campus,Talent International,245267,"4,075.92",Information Management Services,SME,Programme Expenditure
UK Statistics Family,Office for National Statistics,01/11/2022,Exp - Purchase Of Goods/Services - IT Contractual Services,Finance,iCoTech Services,245268,"54,792.00",Information Management Services,SME,Programme Expenditure
UK Statistics Family,Office for National Statistics,01/11/2022,Other Goods And Services,Business Statistics Transformation,Dun & Bradstreet Ltd,245271,"39,000.00",Data Acquisition,Large,Programme Expenditure
UK Statistics Family,Office for National Statistics,01/11/2022,Prepayments - London Postage Meter,postage,Pitney Bowes Ltd,245276,0.59,Postage Services,Large,Programme Expenditure
UK Statistics Family,Office for National Statistics,01/11/2022,Postage,REPROGRAPHICS,Pitney Bowes Ltd,245276,"137,609.33",Postage Services,Large,Programme Expenditure
UK Statistics Family,Office for National Statistics,02/11/2022,Exp - Short-Term Contract & Agency Staff - Full Cost,Crime Income And Wealth,Concept Information Technology Ltd T/A Concept Resourcing,245435,"17,525.53",Information Management Services,Large,Programme Expenditure
UK Statistics Family,Office for National Statistics,02/11/2022,Exp - Short-Term Contract & Agency Staff - Full Cost,Crime Income And Wealth,Concept Information Technology Ltd T/A Concept Resourcing,245435,"13,704.68",Information Management Services,Large,Programme Expenditure
UK Statistics Family,Office for National Statistics,02/11/2022,Exp - Purchase Of Goods And Services Consultants,Corporate Planning And Resilience,Ernst & Young LLP,245437,"9,723.75",Consultancy,Large,Programme Expenditure
UK Statistics Family,Office for National Statistics,02/11/2022,Training & Development,Learning And Capability,Ernst & Young LLP,245437,"17,118.76",Training and Educational Services,Large,Programme Expenditure
UK Statistics Family,Office for National Statistics,02/11/2022,Exp - Purchase Of Goods/Services - IT Contractual Services,PARTNERSHIP DEVELOPMENT,CTS (Cloud Technology Solutions Ltd),245440,"107,955.00",Information Management Services,Large,Programme Expenditure
UK Statistics Family,Office for National Statistics,02/11/2022,Non IT Maintenance And Hire,REPROGRAPHICS,Canon UK Ltd,245449,"44,653.62",Equipment Hire,Large,Programme Expenditure
UK Statistics Family,Office for National Statistics,03/11/2022,Hosting,CLOUD ARCHITECTURE,Amazon Web Services Inc,245595,"34,919.75",Information Management Services,Large,Programme Expenditure
UK Statistics Family,Office for National Statistics,03/11/2022,Hosting,CDIO UNGP,Amazon Web Services Inc,245595,0.91,Information Management Services,Large,Programme Expenditure
UK Statistics Family,Office for National Statistics,03/11/2022,IT (Owned) At Cost - Additions,PROPERTY LONDON 2MS,Orange box Limited,245600,"61,108.08",Office Furniture,SME,Programme Expenditure
UK Statistics Family,Office for National Statistics,04/11/2022,Major Works Over 25K,Property Titchfield,Vinci Construction UK Limited,245712,"66,603.02",Facilities Mangement Services,Large,Programme Expenditure
UK Statistics Family,Office for National Statistics,04/11/2022,Telecoms,IT Operations,Bt Global Services,245714,"51,984.00",Telecommunications,Large,Programme Expenditure
UK Statistics Family,Office for National Statistics,04/11/2022,Travel And Subsistence,CWT Trainline,Calder World of Travel,245716,"42,833.80",Travel and Accommodation,SME,Programme Expenditure
UK Statistics Family,Office for National Statistics,04/11/2022,Exp - Purchase Of Goods And Services Consultants,2023 CENSUS DATA TRANSFORMATION,The Sensible Code Company,245726,"49,189.80",Statistical Services,SME,Programme Expenditure
UK Statistics Family,Office for National Statistics,04/11/2022,Survey Incentive Vouchers,Covid Infection Survey,Sodexo Motivation Solutions U.K. ltd,245727,"75,806.70",Survey Response Incentive Vouchers,Large,Programme Expenditure
UK Statistics Family,Office for National Statistics,04/11/2022,Other Goods And Services,ONS Corporate Funds,Edenred (UK Group) Limited,245729,"52,900.00",Performance Reward Vouchers,Large,Programme Expenditure
UK Statistics Family,Office for National Statistics,04/11/2022,Exp - Short-Term Contract & Agency Staff - Full Cost,Beyond 2021 Research And Design,Talent International,245732,"6,153.23",Information Management Services,SME,Programme Expenditure
UK Statistics Family,Office for National Statistics,04/11/2022,Exp - Purchase Of Goods/Services - Contractors,Consultancy Management,Talent International,245732,"12,000.00",Information Management Services,SME,Programme Expenditure
UK Statistics Family,Office for National Statistics,04/11/2022,Exp - Purchase Of Goods/Services - Contractors,Digital Publishing,Talent International,245732,"1,620.00",Information Management Services,SME,Programme Expenditure
UK Statistics Family,Office for National Statistics,04/11/2022,Exp - Purchase Of Goods/Services - Contractors,Digital Media,Talent International,245732,"25,110.00",Information Management Services,SME,Programme Expenditure
UK Statistics Family,Office for National Statistics,04/11/2022,Exp - Short-Term Contract & Agency Staff - Full Cost,Business Change Support,Talent International,245732,"2,847.78",Information Management Services,SME,Programme Expenditure
UK Statistics Family,Office for National Statistics,04/11/2022,Exp - Purchase Of Goods/Services - Contractors,Data Architecture,Talent International,245732,"20,400.00",Information Management Services,SME,Programme Expenditure
UK Statistics Family,Office for National Statistics,04/11/2022,Exp - Purchase Of Goods/Services - Contractors,Data Architecture,Talent International,245732,"12,600.00",Information Management Services,SME,Programme Expenditure
UK Statistics Family,Office for National Statistics,07/11/2022,Exp - Short-Term Contract & Agency Staff - Full Cost,2023 CENSUS DATA TRANSFORMATION,Concept Information Technology Ltd T/A Concept Resourcing,245835,"3,861.13",Information Management Services,Large,Programme Expenditure
UK Statistics Family,Office for National Statistics,07/11/2022,Exp - Purchase Of Goods/Services - Contractors,Beyond 2021 Research And Design,Concept Information Technology Ltd T/A Concept Resourcing,245835,"13,386.34",Information Management Services,Large,Programme Expenditure
UK Statistics Family,Office for National Statistics,07/11/2022,Exp - Short-Term Contract & Agency Staff - Full Cost,N A Coordination,Concept Information Technology Ltd T/A Concept Resourcing,245835,"10,002.77",Information Management Services,Large,Programme Expenditure
UK Statistics Family,Office for National Statistics,07/11/2022,Exp - Short-Term Contract & Agency Staff - Full Cost,ECONOMICS STATISTICS CHANGE CENTRAL,Concept Information Technology Ltd T/A Concept Resourcing,245835,"3,904.28",Information Management Services,Large,Programme Expenditure
UK Statistics Family,Office for National Statistics,07/11/2022,Exp - Short-Term Contract & Agency Staff - Full Cost,STRATEGY SYNTHESIS AND CO-ORDINATION,Concept Information Technology Ltd T/A Concept Resourcing,245835,"3,067.56",Information Management Services,Large,Programme Expenditure
UK Statistics Family,Office for National Statistics,07/11/2022,Exp - Short-Term Contract & Agency Staff - Full Cost,Recruitment ,Concept Information Technology Ltd T/A Concept Resourcing,245835,"2,768.88",Information Management Services,Large,Programme Expenditure
UK Statistics Family,Office for National Statistics,07/11/2022,Exp - Short-Term Contract & Agency Staff - Full Cost,Social Surveys Division,Concept Information Technology Ltd T/A Concept Resourcing,245835,"7,825.23",Information Management Services,Large,Programme Expenditure
UK Statistics Family,Office for National Statistics,07/11/2022,Exp - Short-Term Contract & Agency Staff - Full Cost,Prices Division,Concept Information Technology Ltd T/A Concept Resourcing,245835,"7,066.70",Information Management Services,Large,Programme Expenditure
UK Statistics Family,Office for National Statistics,07/11/2022,Exp - Short-Term Contract & Agency Staff - Full Cost,Prices Division,Concept Information Technology Ltd T/A Concept Resourcing,245835,"3,706.68",Information Management Services,Large,Programme Expenditure
UK Statistics Family,Office for National Statistics,07/11/2022,Exp - Short-Term Contract & Agency Staff - Full Cost,Prices Division,Concept Information Technology Ltd T/A Concept Resourcing,245835,"26,492.92",Information Management Services,Large,Programme Expenditure
UK Statistics Family,Office for National Statistics,07/11/2022,Exp - Purchase Of Goods/Services - Contractors,Consultancy Management,LA FOSSE ASSOCIATES LIMITED,245842,"16,919.72",Information Management Services,Large,Programme Expenditure
UK Statistics Family,Office for National Statistics,07/11/2022,Exp - Purchase Of Goods/Services - Contractors,Digital Publishing,LA FOSSE ASSOCIATES LIMITED,245842,"3,600.00",Information Management Services,Large,Programme Expenditure
UK Statistics Family,Office for National Statistics,07/11/2022,Exp - Purchase Of Goods/Services - Contractors,Data Architecture,LA FOSSE ASSOCIATES LIMITED,245842,"23,760.00",Information Management Services,Large,Programme Expenditure
UK Statistics Family,Office for National Statistics,07/11/2022,Exp - Purchase Of Goods/Services - Contractors,Tech Delivery Legacy Sp,LA FOSSE ASSOCIATES LIMITED,245842,"18,900.00",Information Management Services,Large,Programme Expenditure
UK Statistics Family,Office for National Statistics,07/11/2022,Exp - Purchase Of Goods And Services Consultants,INTEGRATED DATA STRATEGY AND DELIVERY,Deloitte,245845,"2,027,898.00",Information Management Services,Large,Programme Expenditure
UK Statistics Family,Office for National Statistics,08/11/2022,Exp - Short-Term Contract & Agency Staff - Full Cost,Beyond 2021 Research And Design,Concept Information Technology Ltd T/A Concept Resourcing,246040,"4,915.10",Information Management Services,Large,Programme Expenditure
UK Statistics Family,Office for National Statistics,08/11/2022,Exp - Short-Term Contract & Agency Staff - Full Cost,Covid Infection Survey,Concept Information Technology Ltd T/A Concept Resourcing,246040,"4,972.92",Information Management Services,Large,Programme Expenditure
UK Statistics Family,Office for National Statistics,08/11/2022,Exp - Short-Term Contract & Agency Staff - Full Cost,International Trade And Transactions,Concept Information Technology Ltd T/A Concept Resourcing,246040,70.2,Information Management Services,Large,Programme Expenditure
UK Statistics Family,Office for National Statistics,08/11/2022,Exp - Short-Term Contract & Agency Staff - Full Cost,STRATEGY SYNTHESIS AND CO-ORDINATION,Concept Information Technology Ltd T/A Concept Resourcing,246040,"3,782.77",Information Management Services,Large,Programme Expenditure
UK Statistics Family,Office for National Statistics,08/11/2022,Exp - Short-Term Contract & Agency Staff - Full Cost,"SUB-NATIONAL STATISTICS AND ANALYSIS
Account	
AccountAutocompletes on TAB	",Concept Information Technology Ltd T/A Concept Resourcing,246040,"5,148.18",Information Management Services,Large,Programme Expenditure
UK Statistics Family,Office for National Statistics,08/11/2022,Exp - Short-Term Contract & Agency Staff - Full Cost,ANALYSIS FUNCTION STRATEGY AND DELIVERY,Concept Information Technology Ltd T/A Concept Resourcing,246040,"6,344.76",Information Management Services,Large,Programme Expenditure
UK Statistics Family,Office for National Statistics,08/11/2022,Exp - Short-Term Contract & Agency Staff - Full Cost,Commercial Services,Concept Information Technology Ltd T/A Concept Resourcing,246040,"3,675.24",Information Management Services,Large,Programme Expenditure
UK Statistics Family,Office for National Statistics,08/11/2022,Exp - Short-Term Contract & Agency Staff - Full Cost,Labour Market,Concept Information Technology Ltd T/A Concept Resourcing,246040,"5,148.18",Information Management Services,Large,Programme Expenditure
UK Statistics Family,Office for National Statistics,08/11/2022,Exp - Purchase Of Goods/Services - IT Contractual Services,Digital Publishing,University of Durham,246041,"72,956.80",Statistical Services,Large,Programme Expenditure
UK Statistics Family,Office for National Statistics,08/11/2022,Travel And Subsistence,Corporate Centre,Corporate Travel Management ,246043,"38,992.93",Travel and Accommodation,SME,Programme Expenditure
UK Statistics Family,Office for National Statistics,08/11/2022,Exp - Purchase Of Goods/Services - Contractors,Programme Support,Certes Computing Ltd,246045,"16,380.00",Information Management Services,SME,Programme Expenditure
UK Statistics Family,Office for National Statistics,08/11/2022,Exp - Purchase Of Goods/Services - Contractors,Security Advisory,Certes Computing Ltd,246045,"9,991.87",Information Management Services,SME,Programme Expenditure
UK Statistics Family,Office for National Statistics,08/11/2022,Exp - Purchase Of Goods/Services - Contractors,Strategy And Architecture,Certes Computing Ltd,246045,"3,600.00",Information Management Services,SME,Programme Expenditure
UK Statistics Family,Office for National Statistics,08/11/2022,Exp - Purchase Of Goods/Services - Contractors,Strategy And Architecture,Certes Computing Ltd,246045,"9,000.00",Information Management Services,SME,Programme Expenditure
UK Statistics Family,Office for National Statistics,08/11/2022,Exp - Purchase Of Goods/Services - Contractors,DATA ENGINEERING OPERATIONS AND DELIVERY,Certes Computing Ltd,246045,"13,947.70",Information Management Services,SME,Programme Expenditure
UK Statistics Family,Office for National Statistics,08/11/2022,Exp - Purchase Of Goods/Services - IT Contractual Services,PARTNERSHIP DEVELOPMENT,CTS (Cloud Technology Solutions Ltd),246052,"33,480.00",Information Management Services,Large,Programme Expenditure
UK Statistics Family,Office for National Statistics,08/11/2022,Hosting,CLOUD ARCHITECTURE,CTS (Cloud Technology Solutions Ltd),246052,"1,629.00",Information Management Services,Large,Programme Expenditure
UK Statistics Family,Office for National Statistics,08/11/2022,Hosting,CLOUD ARCHITECTURE,CTS (Cloud Technology Solutions Ltd),246052,"202,015.58",Information Management Services,Large,Programme Expenditure
UK Statistics Family,Office for National Statistics,08/11/2022,Exp - Purchase Of Goods/Services - IT Contractual Services,CDIO UNGP,CTS (Cloud Technology Solutions Ltd),246052,"108,768.00",Information Management Services,Large,Programme Expenditure
UK Statistics Family,Office for National Statistics,08/11/2022,Exp - Purchase Of Goods/Services - IT Contractual Services,PARTNERSHIP DEVELOPMENT,CGI IT UK Limited,246055,"713,214.00",Information Management Services,Large,Programme Expenditure
UK Statistics Family,Office for National Statistics,08/11/2022,Exp - Purchase Of Goods/Services - Contractors,PARTNERSHIP DEVELOPMENT,CGI IT UK Limited,246055,"1,768.80",Information Management Services,Large,Programme Expenditure
UK Statistics Family,Office for National Statistics,08/11/2022,Exp - Purchase Of Goods/Services - Incentive Payments,Survey Management,Sodexo Motivation Solutions U.K. ltd,246057,"3,185.08",Survey Response Incentive Vouchers,Large,Programme Expenditure
UK Statistics Family,Office for National Statistics,08/11/2022,Exp - Purchase Of Goods/Services - Incentive Payments,Survey Management,Sodexo Motivation Solutions U.K. ltd,246057,"1,759.95",Survey Response Incentive Vouchers,Large,Programme Expenditure
UK Statistics Family,Office for National Statistics,08/11/2022,Exp - Purchase Of Goods/Services - Incentive Payments,Survey Management,Sodexo Motivation Solutions U.K. ltd,246057,"25,557.72",Survey Response Incentive Vouchers,Large,Programme Expenditure
UK Statistics Family,Office for National Statistics,08/11/2022,Exp - Purchase Of Goods/Services - Incentive Payments,Survey Management,Sodexo Motivation Solutions U.K. ltd,246057,"3,180.16",Survey Response Incentive Vouchers,Large,Programme Expenditure
UK Statistics Family,Office for National Statistics,08/11/2022,Other Goods And Services,Survey Management,Sodexo Motivation Solutions U.K. ltd,246057,"8,374.75",Survey Response Incentive Vouchers,Large,Programme Expenditure
UK Statistics Family,Office for National Statistics,08/11/2022,Exp - Purchase Of Goods/Services - Contractors,Consultancy Management,LA FOSSE ASSOCIATES LIMITED,246058,"30,960.00",Information Management Services,Large,Programme Expenditure
UK Statistics Family,Office for National Statistics,08/11/2022,Exp - Short-Term Contract & Agency Staff - Full Cost,Finance,Talent International,246063,"9,218.79",Information Management Services,SME,Programme Expenditure
UK Statistics Family,Office for National Statistics,08/11/2022,Exp - Short-Term Contract & Agency Staff - Full Cost,Recruitment ,Talent International,246063,"3,674.36",Information Management Services,SME,Programme Expenditure
UK Statistics Family,Office for National Statistics,08/11/2022,Exp - Short-Term Contract & Agency Staff - Full Cost,SOCIAL SURVEY DATA PROCESSING,Talent International,246063,"13,000.00",Information Management Services,SME,Programme Expenditure
UK Statistics Family,Office for National Statistics,09/11/2022,Exp - Short-Term Contract & Agency Staff - Full Cost,International Trade And Transactions,Concept Information Technology Ltd T/A Concept Resourcing,246239,"8,915.05",Information Management Services,Large,Programme Expenditure
UK Statistics Family,Office for National Statistics,09/11/2022,Exp - Short-Term Contract & Agency Staff - Full Cost,International Trade And Transactions,Concept Information Technology Ltd T/A Concept Resourcing,246239,"3,606.88",Information Management Services,Large,Programme Expenditure
UK Statistics Family,Office for National Statistics,09/11/2022,Exp - Short-Term Contract & Agency Staff - Full Cost,International Trade And Transactions,Concept Information Technology Ltd T/A Concept Resourcing,246239,"10,112.70",Information Management Services,Large,Programme Expenditure
UK Statistics Family,Office for National Statistics,09/11/2022,Exp - Short-Term Contract & Agency Staff - Full Cost,Business Architecture Transformation And Statistical Strategy,Concept Information Technology Ltd T/A Concept Resourcing,246239,"5,148.18",Information Management Services,Large,Programme Expenditure
UK Statistics Family,Office for National Statistics,09/11/2022,Exp - Short-Term Contract & Agency Staff - Full Cost,Business Architecture Transformation And Statistical Strategy,Concept Information Technology Ltd T/A Concept Resourcing,246239,"4,118.54",Information Management Services,Large,Programme Expenditure
UK Statistics Family,Office for National Statistics,09/11/2022,Exp - Short-Term Contract & Agency Staff - Full Cost,ECONOMICS STATISTICS CHANGE CENTRAL,Concept Information Technology Ltd T/A Concept Resourcing,246239,"3,623.83",Information Management Services,Large,Programme Expenditure
UK Statistics Family,Office for National Statistics,09/11/2022,Exp - Short-Term Contract & Agency Staff - Full Cost,MSA Central,Concept Information Technology Ltd T/A Concept Resourcing,246239,784.1,Information Management Services,Large,Programme Expenditure
UK Statistics Family,Office for National Statistics,09/11/2022,Exp - Short-Term Contract & Agency Staff - Full Cost,Public Sector And Households,Concept Information Technology Ltd T/A Concept Resourcing,246239,"3,136.42",Information Management Services,Large,Programme Expenditure
UK Statistics Family,Office for National Statistics,09/11/2022,Exp - Short-Term Contract & Agency Staff - Full Cost,Public Sector And Households,Concept Information Technology Ltd T/A Concept Resourcing,246239,"8,854.87",Information Management Services,Large,Programme Expenditure
UK Statistics Family,Office for National Statistics,09/11/2022,Exp - Short-Term Contract & Agency Staff - Full Cost,Public Sector And Households,Concept Information Technology Ltd T/A Concept Resourcing,246239,"2,537.90",Information Management Services,Large,Programme Expenditure
UK Statistics Family,Office for National Statistics,09/11/2022,Exp - Purchase Of Goods/Services - Contractors,Security Advisory,Certes Computing Ltd,246245,"20,538.76",Information Management Services,SME,Programme Expenditure
UK Statistics Family,Office for National Statistics,09/11/2022,Exp - Purchase Of Goods/Services - Contractors,Data Architecture,Certes Computing Ltd,246245,"8,400.00",Information Management Services,SME,Programme Expenditure
UK Statistics Family,Office for National Statistics,09/11/2022,Exp - Purchase Of Goods/Services - Contractors,Data Architecture,Certes Computing Ltd,246245,"9,180.36",Information Management Services,SME,Programme Expenditure
UK Statistics Family,Office for National Statistics,09/11/2022,Exp - Purchase Of Goods/Services - Contractors,CLOUD ARCHITECTURE,Certes Computing Ltd,246245,"9,291.35",Information Management Services,SME,Programme Expenditure
UK Statistics Family,Office for National Statistics,09/11/2022,Exp - Purchase Of Goods/Services - Contractors,DATA ENGINEERING OPERATIONS AND DELIVERY,Certes Computing Ltd,246245,"18,292.68",Information Management Services,SME,Programme Expenditure
UK Statistics Family,Office for National Statistics,09/11/2022,Exp - Purchase Of Goods/Services - Contractors,Testing,La International,246246,"8,756.40",Information Management Services,SME,Programme Expenditure
UK Statistics Family,Office for National Statistics,09/11/2022,Exp - Purchase Of Goods/Services - Contractors,Consultancy Management,La International,246246,"2,944.94",Information Management Services,SME,Programme Expenditure
UK Statistics Family,Office for National Statistics,09/11/2022,Exp - Purchase Of Goods/Services - Contractors,Consultancy Management,La International,246246,"2,152.98",Information Management Services,SME,Programme Expenditure
UK Statistics Family,Office for National Statistics,09/11/2022,Exp - Purchase Of Goods/Services - Contractors,Security And Information Management Saim,La International,246246,"17,100.00",Information Management Services,SME,Programme Expenditure
UK Statistics Family,Office for National Statistics,09/11/2022,Exp - Purchase Of Goods/Services - Contractors,Data Architecture,La International,246246,"2,389.43",Information Management Services,SME,Programme Expenditure
UK Statistics Family,Office for National Statistics,09/11/2022,Exp - Purchase Of Goods/Services - Contractors,CLOUD ARCHITECTURE,La International,246246,"12,495.06",Information Management Services,SME,Programme Expenditure
UK Statistics Family,Office for National Statistics,09/11/2022,Exp - Purchase Of Goods/Services - Contractors,Tech Delivery Legacy Sp,La International,246246,"8,330.04",Information Management Services,SME,Programme Expenditure
UK Statistics Family,Office for National Statistics,09/11/2022,Exp - Purchase Of Goods/Services - Contractors,IT Applications,La International,246246,"2,883.48",Information Management Services,SME,Programme Expenditure
UK Statistics Family,Office for National Statistics,09/11/2022,Hospitality,Property Services,BaxterStorey,246251,"33,070.15",Catering Services,Large,Programme Expenditure
UK Statistics Family,Office for National Statistics,09/11/2022,Exp - Purchase Of Goods/Services - Contractors,Business Architecture Transformation And Statistical Strategy,Malikshaw Interim & Executive,246252,"16,380.00",Information Management Services,SME,Programme Expenditure
UK Statistics Family,Office for National Statistics,09/11/2022,Exp - Purchase Of Goods/Services - Contractors,Data Architecture,Malikshaw Interim & Executive,246252,"13,017.60",Information Management Services,SME,Programme Expenditure
UK Statistics Family,Office for National Statistics,09/11/2022,Exp - Purchase Of Goods/Services - Contractors,Data Architecture,Malikshaw Interim & Executive,246252,"20,865.60",Information Management Services,SME,Programme Expenditure
UK Statistics Family,Office for National Statistics,09/11/2022,Exp - Purchase Of Goods And Services Consultants,Digital Media,Methods Business & Digital Technology Ltd,246254,"1,145,006.30",Information Management Services,Large,Programme Expenditure
UK Statistics Family,Office for National Statistics,09/11/2022,Exp - Purchase Of Goods/Services - Contractors,Digital Publishing,LA FOSSE ASSOCIATES LIMITED,246256,"13,317.00",Information Management Services,Large,Programme Expenditure
UK Statistics Family,Office for National Statistics,09/11/2022,Exp - Purchase Of Goods/Services - Contractors,INTEGRATED DATA STRATEGY AND DELIVERY,LA FOSSE ASSOCIATES LIMITED,246256,"14,820.00",Information Management Services,Large,Programme Expenditure
UK Statistics Family,Office for National Statistics,09/11/2022,Exp - Purchase Of Goods/Services - Contractors,Digital Delivery,LA FOSSE ASSOCIATES LIMITED,246256,"17,280.00",Information Management Services,Large,Programme Expenditure
UK Statistics Family,Office for National Statistics,09/11/2022,Exp - Purchase Of Goods/Services - Contractors,Security Advisory,Parity Resources Limited,246258,"34,884.00",Information Management Services,Large,Programme Expenditure
UK Statistics Family,Office for National Statistics,09/11/2022,Exp - Purchase Of Goods/Services - Contractors,DATA ENGINEERING OPERATIONS AND DELIVERY,Parity Resources Limited,246258,"15,642.00",Information Management Services,Large,Programme Expenditure
UK Statistics Family,Office for National Statistics,09/11/2022,Exp - Purchase Of Goods/Services - Contractors,International Trade And Transactions,Talent International,246259,"6,048.00",Information Management Services,SME,Programme Expenditure
UK Statistics Family,Office for National Statistics,09/11/2022,Exp - Purchase Of Goods/Services - Contractors,Data Architecture,Talent International,246259,"19,199.76",Information Management Services,SME,Programme Expenditure
UK Statistics Family,Office for National Statistics,09/11/2022,Exp - Purchase Of Goods/Services - Contractors,Tech Delivery Legacy Sp,Talent International,246259,"19,176.00",Information Management Services,SME,Programme Expenditure
UK Statistics Family,Office for National Statistics,09/11/2022,Exp - Purchase Of Goods/Services - Contractors,Tech Delivery Next Gen IT And Infrastructure,Talent International,246259,"17,526.60",Information Management Services,SME,Programme Expenditure
UK Statistics Family,Office for National Statistics,09/11/2022,Exp - Purchase Of Goods/Services - Contractors,IT Applications,Talent International,246259,"14,376.00",Information Management Services,SME,Programme Expenditure
UK Statistics Family,Office for National Statistics,10/11/2022,Exp - Purchase Of Goods/Services - IT Contractual Services,Digital Publishing,Swirrl It Ltd,246368,"71,026.20",Information Management Services,SME,Programme Expenditure
UK Statistics Family,Office for National Statistics,10/11/2022,Accommodation & Building Management,Property London,Westminster City Council,246371,"155,344.00",Non-domestic Rates,Large,Programme Expenditure
UK Statistics Family,Office for National Statistics,10/11/2022,Exp - Purchase Of Goods/Services - IT Contractual Services,IT Operations,Ibm United Kingdom Ltd,246374,"49,642.92",Information Management Services,Large,Programme Expenditure
UK Statistics Family,Office for National Statistics,10/11/2022,Exp - Purchase Of Goods/Services - IT Contractual Services,IT Operations,Ibm United Kingdom Ltd,246374,"123,129.90",Information Management Services,Large,Programme Expenditure
UK Statistics Family,Office for National Statistics,10/11/2022,Stationery,Lodgecard,Royal Bank of Scotland,246381,"3,509.80",Multiple Procurement Card Purchases  - Stationery ,Large,Programme Expenditure
UK Statistics Family,Office for National Statistics,10/11/2022,Other Goods And Services,GPC,Royal Bank of Scotland,246381,"68,324.45",Multiple Procurement Card Purchases - other goods/services  ,Large,Programme Expenditure
UK Statistics Family,Office for National Statistics,10/11/2022,Travel And Subsistence,Car Hire,Royal Bank of Scotland,246381,"24,088.27",Multiple Procurement Card Purchases - Vehicle Hire  ,Large,Programme Expenditure
UK Statistics Family,Office for National Statistics,10/11/2022,Exp - Purchase Of Goods And Services Consultants,Digital Media,Methods Business & Digital Technology Ltd,246390,"27,037.50",Information Management Services,Large,Programme Expenditure
UK Statistics Family,Office for National Statistics,10/11/2022,Exp - Purchase Of Goods/Services - Contractors,Data Architecture,SmartSourcing Ltd,246393,"28,895.04",Information Management Services,SME,Programme Expenditure
UK Statistics Family,Office for National Statistics,10/11/2022,Exp - Short-Term Contract & Agency Staff - Full Cost,Recruitment ,Parity Resources Limited,246394,"2,930.40",Information Management Services,Large,Programme Expenditure
UK Statistics Family,Office for National Statistics,10/11/2022,Exp - Purchase Of Goods/Services - Contractors,Data Architecture,Parity Resources Limited,246394,"9,621.00",Information Management Services,Large,Programme Expenditure
UK Statistics Family,Office for National Statistics,10/11/2022,Exp - Purchase Of Goods/Services - Contractors,CDIO UNGP,Parity Resources Limited,246394,"18,402.00",Information Management Services,Large,Programme Expenditure
UK Statistics Family,Office for National Statistics,10/11/2022,Exp - Purchase Of Goods/Services - Contractors,Tech Delivery Legacy Sp,Parity Resources Limited,246394,"1,619.53",Information Management Services,Large,Programme Expenditure
UK Statistics Family,Office for National Statistics,10/11/2022,Exp - Purchase Of Goods/Services - Contractors,Tech Delivery Next Gen IT And Infrastructure,Parity Resources Limited,246394,"4,210.50",Information Management Services,Large,Programme Expenditure
UK Statistics Family,Office for National Statistics,10/11/2022,Exp - Purchase Of Goods/Services - Contractors,IT Applications,Parity Resources Limited,246394,"41,729.76",Information Management Services,Large,Programme Expenditure
UK Statistics Family,Office for National Statistics,10/11/2022,Exp - Purchase Of Goods/Services - Contractors,IT Operations,Parity Resources Limited,246394,"14,202.00",Information Management Services,Large,Programme Expenditure
UK Statistics Family,Office for National Statistics,10/11/2022,Exp - Seconded UK Staff - Basic Salary,FAST STREAM RECHARGES - CABINET OFFICE,Cabinet Office,246395,"150,967.00",Fast Stream Charges,Large,Programme Expenditure
UK Statistics Family,Office for National Statistics,10/11/2022,Other Professional Services,Property Services,Arcadis LLP,246400,"42,000.00",Consultancy,Large,Programme Expenditure
UK Statistics Family,Office for National Statistics,10/11/2022,Exp - Purchase Of Goods/Services - IT Contractual Services,IT Applications,Diegesis Limited,246402,"139,680.00",Information Management Services,Large,Programme Expenditure
UK Statistics Family,Office for National Statistics,10/11/2022,Exp - Purchase Of Goods/Services - Contractors,CDIO UNGP,Malikshaw Interim & Executive,246403,"16,380.00",Information Management Services,SME,Programme Expenditure
UK Statistics Family,Office for National Statistics,10/11/2022,Exp - Purchase Of Goods/Services - Contractors,DATA ENGINEERING OPERATIONS AND DELIVERY,Malikshaw Interim & Executive,246403,"19,605.60",Information Management Services,SME,Programme Expenditure
UK Statistics Family,Office for National Statistics,10/11/2022,Exp - Purchase Of Goods/Services - Contractors,PARTNERSHIP DEVELOPMENT,CGI IT UK Limited,246405,"31,284.00",Information Management Services,Large,Programme Expenditure
UK Statistics Family,Office for National Statistics,11/11/2022,Exp - Purchase Of Goods/Services - IT Contractual Services,IT Applications,Diegesis Limited,246547,"25,650.00",Information Management Services,Large,Programme Expenditure
UK Statistics Family,Office for National Statistics,11/11/2022,Survey Incentive Vouchers,Covid Infection Survey,Sodexo Motivation Solutions U.K. ltd,246548,"123,553.80",Survey Response Incentive Vouchers,Large,Programme Expenditure
UK Statistics Family,Office for National Statistics,11/11/2022,"ICT Outsourcing, Maintenance And Support",Researcher Support And Data Access ,Boxxe Ltd,246550,"106,268.04",Information Management Services,SME,Programme Expenditure
UK Statistics Family,Office for National Statistics,14/11/2022,Exp - Purchase Of Goods And Services Consultants,Digital Media,Methods Business & Digital Technology Ltd,246679,595.51,Information Management Services,Large,Programme Expenditure
UK Statistics Family,Office for National Statistics,14/11/2022,Exp - Purchase Of Goods/Services - IT Contractual Services,CDIO UNGP,Methods Business & Digital Technology Ltd,246679,"41,250.00",Information Management Services,Large,Programme Expenditure
UK Statistics Family,Office for National Statistics,14/11/2022,Exp - Purchase Of Goods And Services Consultants,"SUB-NATIONAL STATISTICS AND ANALYSIS
Account	
AccountAutocompletes on TAB	",Matt Hamnet & Associates Ltd,246684,"96,563.94",Consultancy,SME,Programme Expenditure
UK Statistics Family,Office for National Statistics,14/11/2022,Hosting,Learning And Capability,eThink Education T/A Open LMS,246685,"30,600.00",Information Management Services,Large,Programme Expenditure
UK Statistics Family,Office for National Statistics,15/11/2022,FM Contract Payments,Vinci Payments,Vinci Construction UK Limited,246919,"338,653.37",Facilities Mangement Services,Large,Programme Expenditure
UK Statistics Family,Office for National Statistics,15/11/2022,Travel And Subsistence,Corporate Centre,Corporate Travel Management ,246923,"54,255.94",Travel and Accommodation,SME,Programme Expenditure
UK Statistics Family,Office for National Statistics,15/11/2022,Exp - Purchase Of Goods/Services - Contractors,CLOUD ARCHITECTURE,Certes Computing Ltd,246925,"32,275.18",Information Management Services,SME,Programme Expenditure
UK Statistics Family,Office for National Statistics,15/11/2022,Exp - Purchase Of Goods/Services - Contractors,Strategy And Architecture,Certes Computing Ltd,246925,"4,500.00",Information Management Services,SME,Programme Expenditure
UK Statistics Family,Office for National Statistics,15/11/2022,Exp - Purchase Of Goods/Services - Contractors,IT Operations,Certes Computing Ltd,246925,"15,931.87",Information Management Services,SME,Programme Expenditure
UK Statistics Family,Office for National Statistics,15/11/2022,Exp - Purchase Of Goods/Services - Contractors,DATA ENGINEERING OPERATIONS AND DELIVERY,Certes Computing Ltd,246925,"9,962.64",Information Management Services,SME,Programme Expenditure
UK Statistics Family,Office for National Statistics,15/11/2022,Exp - Purchase Of Goods/Services - Contractors,Data As A Service,Certes Computing Ltd,246925,"12,619.34",Information Management Services,SME,Programme Expenditure
UK Statistics Family,Office for National Statistics,15/11/2022,Exp - Seconded UK Staff - Basic Salary,Data Science Campus,Bank of England,246933,"3,594.73",Seconded Staff,Large,Programme Expenditure
UK Statistics Family,Office for National Statistics,15/11/2022,Exp - Seconded UK Staff - Basic Salary,Data Science Campus,Bank of England,246933,"8,387.71",Seconded Staff,Large,Programme Expenditure
UK Statistics Family,Office for National Statistics,15/11/2022,Exp - Seconded UK Staff - Basic Salary,Prices Division,Bank of England,246933,"14,647.30",Seconded Staff,Large,Programme Expenditure
UK Statistics Family,Office for National Statistics,15/11/2022,Surveys,Business Outputs And Developments,Iff Research,246934,"130,453.20",Statistical Services,Large,Programme Expenditure
UK Statistics Family,Office for National Statistics,15/11/2022,Exp - Purchase Of Goods/Services - Training & Development - Seminar & Conference Fees,Learning And Capability,Insights Learning and Development Limited,246935,"35,337.60",Training and Educational Services,SME,Programme Expenditure
UK Statistics Family,Office for National Statistics,15/11/2022,Exp - Purchase Of Goods And Services Consultants,2023 CENSUS DATA TRANSFORMATION,The Sensible Code Company,246936,"124,958.48",Statistical Services,SME,Programme Expenditure
UK Statistics Family,Office for National Statistics,15/11/2022,Exp - Purchase Of Goods/Services - Incentive Payments,Survey Management,Sodexo Motivation Solutions U.K. ltd,246937,"5,193.71",Survey Response Incentive Vouchers,Large,Programme Expenditure
UK Statistics Family,Office for National Statistics,15/11/2022,Exp - Purchase Of Goods/Services - Incentive Payments,Survey Management,Sodexo Motivation Solutions U.K. ltd,246937,"1,526.34",Survey Response Incentive Vouchers,Large,Programme Expenditure
UK Statistics Family,Office for National Statistics,15/11/2022,Exp - Purchase Of Goods/Services - Incentive Payments,Survey Management,Sodexo Motivation Solutions U.K. ltd,246937,"1,696.33",Survey Response Incentive Vouchers,Large,Programme Expenditure
UK Statistics Family,Office for National Statistics,15/11/2022,Exp - Purchase Of Goods/Services - Incentive Payments,Survey Management,Sodexo Motivation Solutions U.K. ltd,246937,"26,646.31",Survey Response Incentive Vouchers,Large,Programme Expenditure
UK Statistics Family,Office for National Statistics,15/11/2022,Exp - Purchase Of Goods/Services - Incentive Payments,Interviewer Support,Sodexo Motivation Solutions U.K. ltd,246937,439.14,Survey Response Incentive Vouchers,Large,Programme Expenditure
UK Statistics Family,Office for National Statistics,15/11/2022,Exp - Purchase Of Goods/Services - Incentive Payments,Survey Management,Sodexo Motivation Solutions U.K. ltd,246937,"7,915.14",Survey Response Incentive Vouchers,Large,Programme Expenditure
UK Statistics Family,Office for National Statistics,15/11/2022,Exp - Purchase Of Goods And Services Consultants,Security Advisory,Bridewell Consulting Limited,246941,"149,069.81",Consultancy,SME,Programme Expenditure
UK Statistics Family,Office for National Statistics,16/11/2022,Exp - Purchase Of Goods/Services - Contractors,Strategy And Architecture,Certes Computing Ltd,247136,"45,209.40",Information Management Services,SME,Programme Expenditure
UK Statistics Family,Office for National Statistics,16/11/2022,Exp - Purchase Of Goods/Services - Contractors,IT Applications,Certes Computing Ltd,247136,"27,959.64",Information Management Services,SME,Programme Expenditure
UK Statistics Family,Office for National Statistics,16/11/2022,Exp - Purchase Of Goods/Services - Contractors,Data Architecture,La International,247137,"3,981.18",Information Management Services,SME,Programme Expenditure
UK Statistics Family,Office for National Statistics,16/11/2022,Exp - Purchase Of Goods/Services - Contractors,Tech Delivery Next Gen IT And Infrastructure,La International,247137,"3,844.62",Information Management Services,SME,Programme Expenditure
UK Statistics Family,Office for National Statistics,16/11/2022,Exp - Purchase Of Goods/Services - Contractors,IT Applications,La International,247137,"5,632.19",Information Management Services,SME,Programme Expenditure
UK Statistics Family,Office for National Statistics,16/11/2022,Exp - Purchase Of Goods/Services - Contractors,IT Operations,La International,247137,"16,018.08",Information Management Services,SME,Programme Expenditure
UK Statistics Family,Office for National Statistics,16/11/2022,Specialist User Software And Hardware,IT Operations,Bytes Software Services Ltd,247138,"27,180.26",Software Licenses,Large,Programme Expenditure
UK Statistics Family,Office for National Statistics,16/11/2022,Exp - Purchase Of Goods And Services Consultants,Digital Publishing,Methods Business & Digital Technology Ltd,247143,"107,520.00",Information Management Services,Large,Programme Expenditure
UK Statistics Family,Office for National Statistics,16/11/2022,Exp - Purchase Of Goods/Services - Contractors,Strategy And Architecture,LA FOSSE ASSOCIATES LIMITED,247144,"7,526.40",Information Management Services,Large,Programme Expenditure
UK Statistics Family,Office for National Statistics,16/11/2022,Exp - Purchase Of Goods/Services - Contractors,Strategy And Architecture,LA FOSSE ASSOCIATES LIMITED,247144,"21,000.00",Information Management Services,Large,Programme Expenditure
UK Statistics Family,Office for National Statistics,16/11/2022,Exp - Purchase Of Goods/Services - Contractors,Covid Infection Survey,Talent International,247152,"15,600.00",Information Management Services,SME,Programme Expenditure
UK Statistics Family,Office for National Statistics,16/11/2022,Exp - Purchase Of Goods/Services - Contractors,IT Applications,Talent International,247152,"15,600.00",Information Management Services,SME,Programme Expenditure
UK Statistics Family,Office for National Statistics,16/11/2022,Exp - Purchase Of Goods/Services - Contractors,IT Operations,Talent International,247152,"13,440.00",Information Management Services,SME,Programme Expenditure
UK Statistics Family,Office for National Statistics,17/11/2022,PPE - NON-PROPERTY (LEASED NON-PFI) - COST - ADDITIONS (AS LESSEE),IT Operations,Crown Hosting Data Centres Limited,247282,"66,406.44",Information Management Services,SME,Programme Expenditure
UK Statistics Family,Office for National Statistics,17/11/2022,Hosting,IT Operations,Crown Hosting Data Centres Limited,247282,99.65,Information Management Services,SME,Programme Expenditure
UK Statistics Family,Office for National Statistics,17/11/2022,Hosting,IT Operations,Crown Hosting Data Centres Limited,247282,"37,722.59",Information Management Services,SME,Programme Expenditure
UK Statistics Family,Office for National Statistics,17/11/2022,Other Goods And Services,Productivity Research And Professional Development,The Alan Turing Institute,247290,"131,637.00",Joint Project Funding,SME,Programme Expenditure
UK Statistics Family,Office for National Statistics,17/11/2022,Exp - Purchase Of Goods/Services - Contractors,Data Architecture,Malikshaw Interim & Executive,247291,"18,345.60",Information Management Services,SME,Programme Expenditure
UK Statistics Family,Office for National Statistics,17/11/2022,Exp - Purchase Of Goods/Services - Contractors,Tech Delivery Next Gen IT And Infrastructure,Malikshaw Interim & Executive,247291,"18,345.60",Information Management Services,SME,Programme Expenditure
UK Statistics Family,Office for National Statistics,17/11/2022,Telecoms,IT Operations,Cdw Limited,247294,"35,536.80",Information Management Services,Large,Programme Expenditure
UK Statistics Family,Office for National Statistics,17/11/2022,Telecoms,IT Operations,Freedom Communications (UK) Ltd,247298,"32,558.16",Information Management Services,Large,Programme Expenditure
UK Statistics Family,Office for National Statistics,17/11/2022,Exp - Seconded UK Staff - Basic Salary,FAST STREAM RECHARGES - CABINET OFFICE,Cabinet Office,247300,"28,214.00",Fast Stream Charges,Large,Programme Expenditure
UK Statistics Family,Office for National Statistics,17/11/2022,End User Software And Hardware,IT Operations,Boxxe Ltd,247301,"4,656,382.20",Software Licenses,SME,Programme Expenditure
UK Statistics Family,Office for National Statistics,18/11/2022,Exp - Purchase Of Goods/Services - IT Contractual Services,CDIO UNGP,Microsoft Limited,247394,"85,071.00",Information Management Services,Large,Programme Expenditure
UK Statistics Family,Office for National Statistics,18/11/2022,Exp - Purchase Of Goods/Services - Incentive Payments,Social Surveys Division,Natcen Social Research,247395,"30,294.60",Statistical Services,Large,Programme Expenditure
UK Statistics Family,Office for National Statistics,18/11/2022,FM Contract Payments,Vinci Payments,Vinci Construction UK Limited,247397,"76,456.63",Facilities Mangement Services,Large,Programme Expenditure
UK Statistics Family,Office for National Statistics,18/11/2022,Survey Incentive Vouchers,Covid Infection Survey,Sodexo Motivation Solutions U.K. ltd,247413,"99,433.50",Survey Response Incentive Vouchers,Large,Programme Expenditure
UK Statistics Family,Office for National Statistics,18/11/2022,Exp - Purchase Of Goods/Services - IT Contractual Services,Digital Delivery,Armakuni Ltd,247414,"47,520.00",Information Management Services,SME,Programme Expenditure
UK Statistics Family,Office for National Statistics,18/11/2022,End User Software And Hardware,IT Operations,Matrix Booking Limited,247416,"52,560.00",Software Licenses,SME,Programme Expenditure
UK Statistics Family,Office for National Statistics,18/11/2022,Exp - Purchase Of Goods/Services - Contractors,Data Architecture,Talent International,247419,"23,039.71",Information Management Services,SME,Programme Expenditure
UK Statistics Family,Office for National Statistics,18/11/2022,Exp - Purchase Of Goods/Services - Contractors,IT Operations,Talent International,247419,"15,210.00",Information Management Services,SME,Programme Expenditure
UK Statistics Family,Office for National Statistics,18/11/2022,Exp - Purchase Of Goods/Services - Contractors,IT Operations,Talent International,247419,"12,600.00",Information Management Services,SME,Programme Expenditure
UK Statistics Family,Office for National Statistics,18/11/2022,Exp - Purchase Of Goods/Services - IT Contractual Services,Strategy And Architecture,Illuminet Solutions Limited,247421,"39,720.00",Information Management Services,Large,Programme Expenditure
UK Statistics Family,Office for National Statistics,18/11/2022,Postage,Property Titchfield,Pitney Bowes Ltd,247422,"27,283.16",Postage Services,Large,Programme Expenditure
UK Statistics Family,Office for National Statistics,21/11/2022,Exp - Short-Term Contract & Agency Staff - Full Cost,Business Change Support,Concept Information Technology Ltd T/A Concept Resourcing,247541,"14,060.06",Information Management Services,Large,Programme Expenditure
UK Statistics Family,Office for National Statistics,21/11/2022,Exp - Short-Term Contract & Agency Staff - Full Cost,Business Change Support,Concept Information Technology Ltd T/A Concept Resourcing,247541,"5,009.04",Information Management Services,Large,Programme Expenditure
UK Statistics Family,Office for National Statistics,21/11/2022,Exp - Short-Term Contract & Agency Staff - Full Cost,Business Change Support,Concept Information Technology Ltd T/A Concept Resourcing,247541,"1,029.64",Information Management Services,Large,Programme Expenditure
UK Statistics Family,Office for National Statistics,21/11/2022,Exp - Short-Term Contract & Agency Staff - Full Cost,Business Change Support,Concept Information Technology Ltd T/A Concept Resourcing,247541,784.1,Information Management Services,Large,Programme Expenditure
UK Statistics Family,Office for National Statistics,21/11/2022,Exp - Short-Term Contract & Agency Staff - Full Cost,Business Change Support,Concept Information Technology Ltd T/A Concept Resourcing,247541,"2,352.31",Information Management Services,Large,Programme Expenditure
UK Statistics Family,Office for National Statistics,21/11/2022,Exp - Short-Term Contract & Agency Staff - Full Cost,Business Change Support,Concept Information Technology Ltd T/A Concept Resourcing,247541,"5,148.18",Information Management Services,Large,Programme Expenditure
UK Statistics Family,Office for National Statistics,21/11/2022,Exp - Short-Term Contract & Agency Staff - Full Cost,Public Sector And Households,Concept Information Technology Ltd T/A Concept Resourcing,247541,"3,920.52",Information Management Services,Large,Programme Expenditure
UK Statistics Family,Office for National Statistics,21/11/2022,Exp - Purchase Of Goods And Services Consultants,Internal Audit,Ernst & Young LLP,247542,"54,800.00",Consultancy,Large,Programme Expenditure
UK Statistics Family,Office for National Statistics,21/11/2022,Exp - Purchase Of Goods/Services - Training & Development - Seminar & Conference Fees,Learning And Capability,Ernst & Young LLP,247542,"2,500.00",Training and Educational Services,Large,Programme Expenditure
UK Statistics Family,Office for National Statistics,22/11/2022,EXP - PURCHASE OF GOODS/SERVICES - DATA ACQUISITION,Data As A Service,Telefonica UK Limited,247725,"162,000.00",Data Acquisition,Large,Programme Expenditure
UK Statistics Family,Office for National Statistics,22/11/2022,Exp - Purchase Of Goods/Services - Contractors,CDIO UNGP,Parity Resources Limited,247728,"4,600.50",Information Management Services,Large,Programme Expenditure
UK Statistics Family,Office for National Statistics,22/11/2022,Exp - Purchase Of Goods/Services - Contractors,Strategy And Architecture,Parity Resources Limited,247728,"3,368.40",Information Management Services,Large,Programme Expenditure
UK Statistics Family,Office for National Statistics,22/11/2022,Exp - Purchase Of Goods/Services - Contractors,Strategy And Architecture,Parity Resources Limited,247728,"4,210.50",Information Management Services,Large,Programme Expenditure
UK Statistics Family,Office for National Statistics,22/11/2022,Exp - Purchase Of Goods/Services - Contractors,Tech Delivery Next Gen IT And Infrastructure,Parity Resources Limited,247728,"16,002.00",Information Management Services,Large,Programme Expenditure
UK Statistics Family,Office for National Statistics,22/11/2022,Exp - Purchase Of Goods/Services - Contractors,IT Operations,Parity Resources Limited,247728,"3,550.50",Information Management Services,Large,Programme Expenditure
UK Statistics Family,Office for National Statistics,23/11/2022,Buildings Under Construction,Property Newport,Vinci Construction UK Limited,247942,"61,763.76",Facilities Mangement Services,Large,Programme Expenditure
UK Statistics Family,Office for National Statistics,23/11/2022,Travel And Subsistence,Corporate Centre,Corporate Travel Management ,247945,"44,014.02",Travel and Accommodation,SME,Programme Expenditure
UK Statistics Family,Office for National Statistics,23/11/2022,Exp - Purchase Of Goods/Services - IT Contractual Services,IT Operations,Akhter Computers PLC,247949,"62,613.98",Information Management Services,SME,Programme Expenditure
UK Statistics Family,Office for National Statistics,23/11/2022,Exp - Purchase Of Goods/Services - Contractors,Testing,La International,247953,"9,419.93",Information Management Services,SME,Programme Expenditure
UK Statistics Family,Office for National Statistics,23/11/2022,Exp - Purchase Of Goods/Services - Contractors,Testing,La International,247953,"3,317.65",Information Management Services,SME,Programme Expenditure
UK Statistics Family,Office for National Statistics,23/11/2022,Exp - Purchase Of Goods/Services - Contractors,Consultancy Management,La International,247953,"2,944.94",Information Management Services,SME,Programme Expenditure
UK Statistics Family,Office for National Statistics,23/11/2022,Exp - Purchase Of Goods/Services - Contractors,Data Architecture,La International,247953,"9,371.80",Information Management Services,SME,Programme Expenditure
UK Statistics Family,Office for National Statistics,23/11/2022,Exp - Purchase Of Goods/Services - Contractors,Data Architecture,La International,247953,"3,424.94",Information Management Services,SME,Programme Expenditure
UK Statistics Family,Office for National Statistics,23/11/2022,Exp - Purchase Of Goods/Services - Contractors,IT Operations,La International,247953,"14,872.24",Information Management Services,SME,Programme Expenditure
UK Statistics Family,Office for National Statistics,23/11/2022,Telecoms,IT Operations,Bt Global Services,247955,"25,731.89",Telecommunications,Large,Programme Expenditure
UK Statistics Family,Office for National Statistics,23/11/2022,IT (Owned) At Cost - Additions,PROPERTY LONDON 2MS,Orange box Limited,247961,"63,916.78",Office Furniture,SME,Programme Expenditure
UK Statistics Family,Office for National Statistics,23/11/2022,Fixtures & Fittings At Cost - Additions,PROPERTY LONDON 2MS,Orange box Limited,247961,"59,185.80",Office Furniture,SME,Programme Expenditure
UK Statistics Family,Office for National Statistics,23/11/2022,Other Goods And Services,PROPERTY LONDON 2MS,Orange box Limited,247961,"13,979.84",Office Furniture,SME,Programme Expenditure
UK Statistics Family,Office for National Statistics,23/11/2022,Exp - Purchase Of Goods And Services Consultants,Policy Secretariat,Parity Resources Limited,247962,"2,508.78",Information Management Services,Large,Programme Expenditure
UK Statistics Family,Office for National Statistics,23/11/2022,Exp - Purchase Of Goods/Services - Contractors,Data Architecture,Parity Resources Limited,247962,"9,621.00",Information Management Services,Large,Programme Expenditure
UK Statistics Family,Office for National Statistics,23/11/2022,Exp - Purchase Of Goods/Services - Contractors,CDIO UNGP,Parity Resources Limited,247962,"4,600.50",Information Management Services,Large,Programme Expenditure
UK Statistics Family,Office for National Statistics,23/11/2022,Exp - Purchase Of Goods/Services - Contractors,Strategy And Architecture,Parity Resources Limited,247962,"4,210.50",Information Management Services,Large,Programme Expenditure
UK Statistics Family,Office for National Statistics,23/11/2022,Exp - Purchase Of Goods/Services - Contractors,Tech Delivery Legacy Sp,Parity Resources Limited,247962,"2,699.22",Information Management Services,Large,Programme Expenditure
UK Statistics Family,Office for National Statistics,23/11/2022,Exp - Purchase Of Goods/Services - Contractors,Tech Delivery Next Gen IT And Infrastructure,Parity Resources Limited,247962,"4,210.50",Information Management Services,Large,Programme Expenditure
UK Statistics Family,Office for National Statistics,23/11/2022,Exp - Purchase Of Goods/Services - Contractors,IT Operations,Parity Resources Limited,247962,"3,550.50",Information Management Services,Large,Programme Expenditure
UK Statistics Family,Office for National Statistics,23/11/2022,Exp - Purchase Of Goods/Services - IT Contractual Services,Strategy And Architecture,Chaucer Group Ltd,247964,185.76,Information Management Services,SME,Programme Expenditure
UK Statistics Family,Office for National Statistics,23/11/2022,Exp - Purchase Of Goods/Services - Contractors,Strategy And Architecture,Chaucer Group Ltd,247964,"29,366.40",Information Management Services,SME,Programme Expenditure
UK Statistics Family,Office for National Statistics,23/11/2022,Hosting,CDIO UNGP,Google Cloud EMEA Limited,247966,"35,443.89",Information Management Services,Large,Programme Expenditure
UK Statistics Family,Office for National Statistics,23/11/2022,Major Works Over 25K,Property Newport,TagEvac Limited,247968,"31,781.57",Facilities Mangement Services,SME,Programme Expenditure
UK Statistics Family,Office for National Statistics,23/11/2022,Major Works Over 25K,Property Titchfield,TagEvac Limited,247968,"35,088.55",Facilities Mangement Services,SME,Programme Expenditure
UK Statistics Family,Office for National Statistics,24/11/2022,Buildings Under Construction,Property Newport,Vinci Construction UK Limited,248093,"84,000.00",Facilities Mangement Services,Large,Programme Expenditure
UK Statistics Family,Office for National Statistics,24/11/2022,Buildings Under Construction,Property Newport,Vinci Construction UK Limited,248093,"31,920.00",Facilities Mangement Services,Large,Programme Expenditure
UK Statistics Family,Office for National Statistics,24/11/2022,Surveys,Prices Division,Kantar Public UK Ltd.,248105,"220,323.80",Statistical Services,SME,Programme Expenditure
UK Statistics Family,Office for National Statistics,24/11/2022,Exp - Purchase Of Goods/Services - IT Contractual Services,Finance,iCoTech Services,248106,"42,984.00",Information Management Services,SME,Programme Expenditure
UK Statistics Family,Office for National Statistics,25/11/2022,Survey Incentive Vouchers,Covid Infection Survey,Sodexo Motivation Solutions U.K. ltd,248245,"104,669.70",Survey Response Incentive Vouchers,Large,Programme Expenditure
UK Statistics Family,Office for National Statistics,25/11/2022,Exp - Purchase Of Goods And Services Consultants,Business Architecture Transformation And Statistical Strategy,Matt Hamnet & Associates Ltd,248248,"47,887.96",Consultancy,SME,Programme Expenditure
UK Statistics Family,Office for National Statistics,25/11/2022,Buildings Under Construction,Property Newport,Vinci Construction UK Limited,248250,"322,659.61",Facilities Mangement Services,Large,Programme Expenditure
UK Statistics Family,Office for National Statistics,25/11/2022,Buildings Under Construction,Property Titchfield,Vinci Construction UK Limited,248250,"431,815.86",Facilities Mangement Services,Large,Programme Expenditure
UK Statistics Family,Office for National Statistics,28/11/2022,Buildings Under Construction,Property Newport,Vinci Construction UK Limited,248360,"37,198.94",Facilities Mangement Services,Large,Programme Expenditure
UK Statistics Family,Office for National Statistics,28/11/2022,"ICT Outsourcing, Maintenance And Support",IT Operations,Computacenter (Uk) Limited,248366,"40,431.36",Software Licenses,Large,Programme Expenditure
UK Statistics Family,Office for National Statistics,28/11/2022,End User Software And Hardware,IT Operations,Computacenter (Uk) Limited,248366,-693.26,Software Licenses,Large,Programme Expenditure
UK Statistics Family,Office for National Statistics,28/11/2022,Exp - Purchase Of Goods/Services - IT Contractual Services,Strategy And Architecture,Methods Business & Digital Technology Ltd,248371,"38,913.00",Information Management Services,Large,Programme Expenditure
UK Statistics Family,Office for National Statistics,28/11/2022,Exp - Purchase Of Goods/Services - IT Contractual Services,Digital Delivery,Methods Business & Digital Technology Ltd,248371,"171,750.00",Information Management Services,Large,Programme Expenditure
UK Statistics Family,Office for National Statistics,28/11/2022,Other Goods And Services,PPP Operations,Deloitte,248376,"83,880.00",Information Management Services,Large,Programme Expenditure
UK Statistics Family,Office for National Statistics,01/11/2022,Surveys,Covid Infection Survey,IQVIA Limited,30003813,"356,350.14",Statistical Services,Large,Programme Expenditure
UK Statistics Family,Office for National Statistics,01/11/2022,Surveys,Covid Infection Survey,IQVIA Limited,30003813,"1,736,118.64",Statistical Services,Large,Programme Expenditure
UK Statistics Family,Office for National Statistics,03/11/2022,Survey Incentive Vouchers,Covid Infection Survey,Sodexo Motivation Solutions U.K. ltd,30003815,"1,051,402.91",Survey Response Incentive Vouchers,Large,Programme Expenditure
UK Statistics Family,Office for National Statistics,10/11/2022,Survey Incentive Vouchers,Covid Infection Survey,Sodexo Motivation Solutions U.K. ltd,30003820,"1,211,154.23",Survey Response Incentive Vouchers,Large,Programme Expenditure
UK Statistics Family,Office for National Statistics,17/11/2022,Survey Incentive Vouchers,Covid Infection Survey,Sodexo Motivation Solutions U.K. ltd,30003844,"1,092,122.30",Survey Response Incentive Vouchers,Large,Programme Expenditure
UK Statistics Family,Office for National Statistics,24/11/2022,Postage,REPROGRAPHICS,Pitney Bowes Ltd,30003861,"171,451.81",Postage Services,Large,Programme Expenditure
UK Statistics Family,Office for National Statistics,24/11/2022,Survey Incentive Vouchers,Covid Infection Survey,Sodexo Motivation Solutions U.K. ltd,30003862,"1,226,753.30",Survey Response Incentive Vouchers,Large,Programme Expenditure
UK Statistics Family,Office for National Statistics,28/11/2022,Surveys,Covid Infection Survey,IQVIA Limited,30003863,"6,000,000.00",Statistical Services,Large,Programme Expenditure
UK Statistics Family,Office for National Statistics,29/11/2022,Surveys,Covid Infection Survey,IQVIA Limited,30003868,"1,527,123.16",Statistical Services,Large,Programme Expenditure
UK Statistics Family,Office for National Statistics,30/11/2022,Electricity,Property Services,Edf Energy,30003870,"27,306.63",Utility Charges,Large,Programme Expenditure
UK Statistics Family,Office for National Statistics,30/11/2022,Surveys,Social Surveys Division,Natcen Social Research,30003871,"1,314,213.88",Statistical Services,Large,Programme Expenditure
UK Statistics Family,Office for National Statistics,30/11/2022,EXP - PURCHASE OF GOODS/SERVICES - INCENTIVE REBATES,Social Surveys Division,Natcen Social Research,30003871,"-153,561.30",Statistical Services,Large,Programme Expenditure
UK Statistics Family,Office for National Statistics,30/11/2022,Surveys,Crime Statistics,Kantar Public UK Ltd.,30003872,"297,311.65",Statistical Services,SME,Programme Expenditure
UK Statistics Family,Office for National Statistics,30/11/2022,Surveys,Crime Statistics,Kantar Public UK Ltd.,30003872,"395,038.25",Statistical Services,SME,Programme Expenditure
,,,,,,,"35,352,851.90",,,
